[Event "3rd FIDE WCCC Blitz U12 2019"]
[Site "Minsk"]
[Date "2019.08.18"]
[Round "9.2"]
[White "Khubukshanov, Erdem"]
[Black "Matviienko, Mykhailo"]
[Result "1-0"]
[ECO "A48"]
[WhiteElo "2257"]
[BlackElo "1755"]
[Annotator "ChessBase"]
[PlyCount "94"]
[EventDate "2019.08.18"]
[EventType "swiss"]
[EventCountry "BLR"]
[SourceTitle "playchess.com"]
[Source "ChessBase"]
[SourceQuality "1"]
[TimeControl "300+2"]

1. Nf3 {[%emt 0:00:00]} Nf6 {[%emt 0:00:00]} 2. d4 {[%emt 0:00:00]} g6 {[%emt 0:00:00]} 3. Nc3 {[%emt 0:00:02]} d5 {[%emt 0:00:01]} 4. Bf4 {[%emt 0:00:01]} Bg7 {[%emt 0:00:01]} 5. Nb5 {[%emt 0:00:00]} Na6 {[%emt 0:00:01]} 6. e3 {[%emt 0:00:01]} O-O {[%emt 0:00:02]} 7. h4 {[%emt 0:00:01]} c6 {[%emt 0:00:00]} 8. Nc3 {[%emt 0:00:01]} Nc7 {[%emt 0:00:07]} 9. Ne5 {[%emt 0:00:07]} Nd7 {[%emt 0:00:08]} 10. h5 {[%emt 0:00:04]} Nxe5 11. Bxe5 {[%emt 0:00:01]} f6 {[%emt 0:00:12]} 12. Bxc7 Qxc7 {[%emt 0:00:02]} 13. hxg6 {[%emt 0:00:08]} hxg6 {[%emt 0:00:01]} 14. Bd3 {[%emt 0:00:01]} f5 {[%emt 0:00:12]} 15. Qf3 {[%emt 0:00:06]} Bd7 {[%emt 0:00:13]} 16. O-O-O {[%emt 0:00:14]} e6 {[%emt 0:00:11]} 17. Qh3 {[%emt 0:00:06]} Kf7 {[%emt 0:00:05]} 18. g4 {[%emt 0:00:05]} Rh8 {[%emt 0:00:06]} 19. Qg2 {[%emt 0:00:08]} Rxh1 {[%emt 0:00:02]} 20. Rxh1 {[%emt 0:00:01]} Rh8 {[%emt 0:00:02]} 21. Rg1 {[%emt 0:00:13]} Bf6 {[%emt 0:00:50]} 22. Ne2 {[%emt 0:00:39]} Be8 {[%emt 0:00:04]} 23. Nf4 {[%emt 0:00:16]} Ke7 {[%emt 0:00:07]} 24. gxf5 {[%emt 0:00:11]} gxf5 {[%emt 0:00:01]} 25. Rh1 {[%emt 0:00:06]} Bf7 {[%emt 0:00:28]} 26. Rxh8 {[%emt 0:00:05]} Bxh8 {[%emt 0:00:01]} 27. Qh2 {[%emt 0:00:29]} Qd8 {[%emt 0:00:06]} 28. Qh7 {[%emt 0:00:31]} Qg8 {[%emt 0:00:04]} 29. Qxg8 {[%emt 0:00:04]} Bxg8 {[%emt 0:00:01]} 30. Ng6+ {[%emt 0:00:01]} Kf7 {[%emt 0:00:09]} 31. Nxh8+ {[%emt 0:00:03]} Kg7 {[%emt 0:00:01]} 32. a4 {[%emt 0:00:03]} Kxh8 {[%emt 0:00:03]} 33. a5 {[%emt 0:00:00]} Kg7 {[%emt 0:00:03]} 34. Kd2 {[%emt 0:00:05]} b6 {[%emt 0:00:03]} 35. axb6 {[%emt 0:00:02]} axb6 {[%emt 0:00:01]} 36. Ke2 {[%emt 0:00:09]} Kf6 {[%emt 0:00:02]} 37. Kf3 {[%emt 0:00:04]} Bf7 {[%emt 0:00:05]} 38. Kf4 {[%emt 0:00:02]} Be8 {[%emt 0:00:27]} 39. Ba6 {[%emt 0:00:08]} Bh5 {[%emt 0:00:18]} 40. b4 {[%emt 0:01:04]} Be8 {[%emt 0:01:02]} 41. Bc8 {[%emt 0:00:06]} Ke7 {[%emt 0:00:27]} 42. Ke5 {[%emt 0:00:02]} Bd7 {[%emt 0:00:12]} 43. Bxd7 Kxd7 {[%emt 0:00:01]} 44. Kf6 {[%emt 0:00:13]} Kd6 {[%emt 0:00:12]} 45. f4 {[%emt 0:00:08]} b5 {[%emt 0:00:05]} 46. Kf7 {[%emt 0:00:04]} Kd7 {[%emt 0:00:01]} 47. c3 {[%emt 0:00:01]} Kd6 1-0

[Event "3rd FIDE WCCC Blitz U12 2019"]
[Site "Minsk"]
[Date "2019.08.18"]
[Round "9.3"]
[White "Israfilov, Ali"]
[Black "Pidluznij, Gleb"]
[Result "0-1"]
[ECO "E91"]
[WhiteElo "1857"]
[BlackElo "1925"]
[Annotator "NA"]
[PlyCount "84"]
[EventDate "2019.08.18"]
[EventType "swiss"]
[EventCountry "BLR"]
[SourceTitle "playchess.com"]
[Source "ChessBase"]
[SourceQuality "1"]
[TimeControl "300+2"]

1. d4 {[%emt 0:00:00]} Nf6 {[%emt 0:00:00]} 2. c4 {[%emt 0:00:00]} g6 {[%emt 0:00:01]} 3. Nc3 {[%emt 0:00:01]} Bg7 {[%emt 0:00:01]} 4. e4 {[%emt 0:00:01]} d6 {[%emt 0:00:01]} 5. Nf3 {[%emt 0:00:01]} O-O {[%emt 0:00:01]} 6. Be2 {[%emt 0:00:01]} c5 {[%emt 0:00:01]} 7. O-O {[%emt 0:00:09]} Nc6 {[%emt 0:00:05]} 8. d5 {[%emt 0:00:02]} Na5 {[%emt 0:00:01]} 9. h3 {[%emt 0:00:08]} e5 {[%emt 0:00:02]} 10. Be3 Ne8 {[%emt 0:00:23]} 11. Nd2 {[%emt 0:00:13]} f5 {[%emt 0:00:05]} 12. f3 {[%emt 0:00:02]} f4 {[%emt 0:00:03]} 13. Bf2 {[%emt 0:00:01]} Bd7 {[%emt 0:00:06]} 14. a3 {[%emt 0:00:01]} b6 {[%emt 0:00:00]} 15. b4 {[%emt 0:00:00]} Nb7 {[%emt 0:00:01]} 16. Rb1 {[%emt 0:00:05]} g5 {[%emt 0:00:16]} 17. Nb3 {[%emt 0:00:06]} h5 {[%emt 0:00:12]} 18. bxc5 {[%emt 0:00:02]} Nxc5 {[%emt 0:00:06]} 19. Nxc5 {[%emt 0:00:02]} bxc5 {[%emt 0:00:27]} 20. Rb7 {[%emt 0:00:05]} Qc8 {[%emt 0:00:18]} 21. Qb3 {[%emt 0:00:05]} g4 {[%emt 0:00:45]} 22. hxg4 {[%emt 0:01:11]} hxg4 {[%emt 0:00:00]} 23. Rb1 {[%emt 0:00:17]} g3 {[%emt 0:00:03]} 24. Be1 {[%emt 0:00:11]} Qd8 {[%emt 0:00:30]} 25. Kf1 {[%emt 0:01:14]} Qh4 {[%emt 0:00:09]} 26. Bf2 {[%emt 0:00:40]} gxf2 {[%emt 0:00:56]} 27. Rxd7 {[%emt 0:00:00]} Nf6 {[%emt 0:00:01]} 28. Qb7 {[%emt 0:00:42]} Nxd7 29. Qxd7 {[%emt 0:00:01]} Bf6 {[%emt 0:00:24]} 30. Qg4+ {[%emt 0:00:33]} Qxg4 31. fxg4 {[%emt 0:00:01]} Rab8 {[%emt 0:00:03]} 32. Kxf2 {[%emt 0:00:03]} Rxb1 {[%emt 0:00:01]} 33. Nxb1 {[%emt 0:00:01]} Rb8 {[%emt 0:00:00]} 34. Nc3 {[%emt 0:00:01]} a6 {[%emt 0:00:06]} 35. g5 {[%emt 0:00:04]} Bxg5 {[%emt 0:00:04]} 36. Na4 {[%emt 0:00:05]} Rb3 {[%emt 0:00:05]} 37. Bg4 Rxa3 {[%emt 0:00:05]} 38. Nb6 {[%emt 0:00:03]} Kf8 {[%emt 0:00:11]} 39. Nc8 {[%emt 0:00:00]} Be7 40. Be6 {[%emt 0:00:03]} a5 {[%emt 0:00:04]} 41. Bh3 {[%emt 0:00:02]} a4 {[%emt 0:00:05]} 42. Nb6 {[%emt 0:00:04]} Rxh3 {[%emt 0:00:11]} 0-1

[Event "3rd FIDE WCCC Blitz U12 2019"]
[Site "Minsk"]
[Date "2019.08.18"]
[Round "9.4"]
[White "Yatchenko, Leonid"]
[Black "Kolesov, Gordey"]
[Result "1-0"]
[ECO "C54"]
[WhiteElo "1587"]
[BlackElo "1761"]
[Annotator "NA"]
[PlyCount "101"]
[EventDate "2019.08.18"]
[EventType "swiss"]
[EventCountry "BLR"]
[SourceTitle "playchess.com"]
[Source "ChessBase"]
[SourceQuality "1"]
[TimeControl "300+2"]

1. e4 e5 2. Nf3 {[%emt 0:00:02]} Nc6 {[%emt 0:00:00]} 3. Bc4 {[%emt 0:00:02]} Bc5 {[%emt 0:00:00]} 4. c3 {[%emt 0:00:01]} Nf6 {[%emt 0:00:00]} 5. d3 {[%emt 0:00:01]} d6 {[%emt 0:00:00]} 6. h3 {[%emt 0:00:11]} h6 {[%emt 0:00:01]} 7. O-O {[%emt 0:00:26]} O-O {[%emt 0:00:02]} 8. Be3 {[%emt 0:00:02]} Bb6 {[%emt 0:00:05]} 9. Nbd2 {[%emt 0:00:05]} Bxe3 {[%emt 0:00:12]} 10. fxe3 {[%emt 0:00:03]} d5 {[%emt 0:00:00]} 11. exd5 {[%emt 0:00:06]} Nxd5 {[%emt 0:00:02]} 12. Qe2 {[%emt 0:00:04]} Be6 {[%emt 0:00:01]} 13. Ne4 {[%emt 0:00:41]} Qe7 {[%emt 0:00:06]} 14. Bb3 {[%emt 0:00:21]} Rad8 {[%emt 0:00:36]} 15. Rfe1 {[%emt 0:00:08]} Bf5 {[%emt 0:00:02]} 16. Ned2 {[%emt 0:00:15]} Qc5 {[%emt 0:00:25]} 17. d4 {[%emt 0:00:08]} Qe7 {[%emt 0:00:46]} 18. Bxd5 {[%emt 0:00:13]} Rxd5 {[%emt 0:00:01]} 19. e4 {[%emt 0:00:01]} Rdd8 {[%emt 0:00:05]} 20. exf5 {[%emt 0:00:02]} Qd7 {[%emt 0:00:02]} 21. Nxe5 {[%emt 0:00:10]} Nxe5 {[%emt 0:00:03]} 22. Qxe5 {[%emt 0:00:01]} Rfe8 {[%emt 0:00:01]} 23. Qf4 {[%emt 0:00:01]} Qb5 {[%emt 0:00:08]} 24. b3 {[%emt 0:00:13]} Qc6 {[%emt 0:00:06]} 25. Qf3 {[%emt 0:00:16]} Qb6 {[%emt 0:00:09]} 26. Nc4 {[%emt 0:00:04]} Qb5 {[%emt 0:00:09]} 27. f6 {[%emt 0:00:03]} g6 {[%emt 0:00:09]} 28. Qf2 {[%emt 0:00:31]} Qg5 {[%emt 0:00:18]} 29. Ne5 {[%emt 0:00:15]} c5 {[%emt 0:00:05]} 30. Nd3 {[%emt 0:00:16]} cxd4 {[%emt 0:00:04]} 31. cxd4 {[%emt 0:00:06]} Qb5 {[%emt 0:00:12]} 32. Rxe8+ {[%emt 0:00:23]} Rxe8 {[%emt 0:00:01]} 33. Re1 {[%emt 0:00:01]} Rd8 {[%emt 0:00:04]} 34. Ne5 {[%emt 0:00:08]} Qb4 {[%emt 0:00:05]} 35. Rd1 {[%emt 0:00:05]} Qb5 {[%emt 0:00:06]} 36. Qe3 {[%emt 0:00:03]} Qb4 {[%emt 0:00:09]} 37. Qxh6 {[%emt 0:00:08]} Qf8 38. Qxf8+ Kxf8 {[%emt 0:00:01]} 39. d5 {[%emt 0:00:03]} b5 {[%emt 0:00:03]} 40. d6 {[%emt 0:00:03]} b4 {[%emt 0:00:01]} 41. d7 {[%emt 0:00:01]} Kg8 {[%emt 0:00:03]} 42. Nc6 {[%emt 0:00:02]} Rxd7 {[%emt 0:00:03]} 43. Rxd7 a5 44. Ne7+ {[%emt 0:00:03]} Kh7 {[%emt 0:00:01]} 45. Rd4 {[%emt 0:00:02]} g5 {[%emt 0:00:01]} 46. g4 {[%emt 0:00:07]} a4 {[%emt 0:00:06]} 47. h4 {[%emt 0:00:05]} axb3 {[%emt 0:00:04]} 48. axb3 {[%emt 0:00:01]} Kh6 {[%emt 0:00:04]} 49. Rd5 {[%emt 0:00:05]} Kh7 {[%emt 0:00:06]} 50. Rxg5 {[%emt 0:00:02]} Kh8 {[%emt 0:00:02]} 51. Rh5# {[%emt 0:00:01]} 1-0

[Event "3rd FIDE WCCC Blitz U12 2019"]
[Site "Minsk"]
[Date "2019.08.18"]
[Round "9.5"]
[White "Kopylov, Artem"]
[Black "Navumenka, Mikhei"]
[Result "0-1"]
[ECO "A50"]
[WhiteElo "1901"]
[BlackElo "2148"]
[Annotator "ChessBase"]
[PlyCount "64"]
[EventDate "2019.08.18"]
[EventType "swiss"]
[EventCountry "BLR"]
[SourceTitle "playchess.com"]
[Source "ChessBase"]
[SourceQuality "1"]
[TimeControl "300+2"]

1. d4 {[%emt 0:00:00]} Nf6 {[%emt 0:00:00]} 2. c4 {[%emt 0:00:01]} b6 {[%emt 0:00:00]} 3. d5 {[%emt 0:00:02]} c5 {[%emt 0:00:12]} 4. Nc3 {[%emt 0:00:56]} e5 {[%emt 0:00:03]} 5. e4 {[%emt 0:00:03]} d6 {[%emt 0:00:06]} 6. Nf3 {[%emt 0:00:13]} g6 {[%emt 0:00:01]} 7. h3 {[%emt 0:00:14]} Bg7 {[%emt 0:00:01]} 8. Bd3 {[%emt 0:00:02]} O-O {[%emt 0:00:03]} 9. O-O {[%emt 0:00:02]} Nh5 {[%emt 0:00:04]} 10. a3 {[%emt 0:00:58]} Nf4 {[%emt 0:00:08]} 11. b4 {[%emt 0:00:17]} Nd7 {[%emt 0:00:05]} 12. b5 {[%emt 0:00:07]} f5 {[%emt 0:00:07]} 13. a4 {[%emt 0:00:17]} Nf6 {[%emt 0:00:08]} 14. Bc2 {[%emt 0:00:33]} fxe4 {[%emt 0:00:13]} 15. Nxe4 {[%emt 0:00:01]} Bf5 {[%emt 0:00:09]} 16. Ng3 {[%emt 0:00:10]} Bxc2 {[%emt 0:00:07]} 17. Qxc2 {[%emt 0:00:01]} N6h5 {[%emt 0:00:14]} 18. Ne4 {[%emt 0:00:05]} Nxh3+ {[%emt 0:00:06]} 19. gxh3 {[%emt 0:00:34]} Rxf3 {[%emt 0:00:07]} 20. Ng5 {[%emt 0:00:04]} Rf5 {[%emt 0:00:06]} 21. Ne6 {[%emt 0:00:30]} Qh4 {[%emt 0:00:10]} 22. Ra3 {[%emt 0:00:01]} Nf4 {[%emt 0:00:11]} 23. Bxf4 {[%emt 0:00:07]} exf4 {[%emt 0:00:03]} 24. Rf3 {[%emt 0:00:08]} Be5 {[%emt 0:00:04]} 25. Kh2 {[%emt 0:00:09]} Qh5 {[%emt 0:00:33]} 26. Qd3 {[%emt 0:00:03]} Kh8 {[%emt 0:00:09]} 27. Rg1 {[%emt 0:00:02]} Rg8 {[%emt 0:00:07]} 28. Qe4 {[%emt 0:00:01]} Rf6 {[%emt 0:01:00]} 29. Nxf4 {[%emt 0:00:03]} Rgf8 {[%emt 0:00:20]} 30. Rg4 {[%emt 0:00:03]} Rxf4 {[%emt 0:00:10]} 31. Rfxf4 {[%emt 0:00:08]} Rxf4 {[%emt 0:00:02]} 32. Rxf4 {[%emt 0:00:04]} Qg5 {[%emt 0:00:02]} 0-1

[Event "3rd FIDE WCCC Blitz U12 2019"]
[Site "Minsk"]
[Date "2019.08.18"]
[Round "9.6"]
[White "Chyndygyr, Tamerlan"]
[Black "Bialiauski, Artsiom"]
[Result "1-0"]
[ECO "E11"]
[WhiteElo "1984"]
[BlackElo "1844"]
[Annotator "NA"]
[PlyCount "137"]
[EventDate "2019.08.18"]
[EventType "swiss"]
[EventCountry "BLR"]
[SourceTitle "playchess.com"]
[Source "ChessBase"]
[SourceQuality "1"]
[TimeControl "300+2"]

1. d4 {[%emt 0:00:00]} Nf6 {[%emt 0:00:00]} 2. c4 {[%emt 0:00:00]} e6 {[%emt 0:00:00]} 3. Nf3 {[%emt 0:00:01]} Bb4+ {[%emt 0:00:01]} 4. Nbd2 {[%emt 0:00:02]} O-O {[%emt 0:00:05]} 5. a3 Be7 {[%emt 0:00:01]} 6. e3 {[%emt 0:00:02]} d5 {[%emt 0:00:02]} 7. Bd3 {[%emt 0:00:02]} b6 {[%emt 0:00:03]} 8. O-O {[%emt 0:00:02]} Bb7 {[%emt 0:00:00]} 9. b3 {[%emt 0:00:01]} Nbd7 {[%emt 0:00:02]} 10. Bb2 {[%emt 0:00:01]} c5 {[%emt 0:00:01]} 11. cxd5 {[%emt 0:00:02]} Nxd5 {[%emt 0:00:04]} 12. Rc1 {[%emt 0:00:05]} Rc8 {[%emt 0:00:01]} 13. Qe2 {[%emt 0:00:02]} N5f6 {[%emt 0:00:14]} 14. Ne5 {[%emt 0:00:04]} cxd4 {[%emt 0:00:16]} 15. exd4 {[%emt 0:00:02]} Nd5 {[%emt 0:00:07]} 16. Rxc8 {[%emt 0:00:29]} Qxc8 {[%emt 0:00:24]} 17. Qg4 {[%emt 0:00:04]} N7f6 18. Qh4 {[%emt 0:00:05]} h6 {[%emt 0:00:27]} 19. Rc1 {[%emt 0:00:08]} Qd8 {[%emt 0:00:16]} 20. Bb1 {[%emt 0:00:54]} Bd6 {[%emt 0:00:39]} 21. Ndc4 {[%emt 0:00:02]} b5 {[%emt 0:00:23]} 22. Nxd6 {[%emt 0:00:03]} Qxd6 {[%emt 0:00:01]} 23. Qg3 {[%emt 0:00:20]} Rc8 {[%emt 0:00:39]} 24. Qd3 {[%emt 0:00:03]} Rxc1+ {[%emt 0:00:04]} 25. Bxc1 {[%emt 0:00:02]} a6 {[%emt 0:00:10]} 26. h4 {[%emt 0:00:06]} Kf8 {[%emt 0:00:10]} 27. g4 {[%emt 0:00:02]} Nd7 {[%emt 0:00:17]} 28. Bb2 {[%emt 0:00:11]} Nxe5 {[%emt 0:00:15]} 29. dxe5 {[%emt 0:00:01]} Qc6 {[%emt 0:00:01]} 30. Qf3 {[%emt 0:00:16]} Ne7 {[%emt 0:00:16]} 31. Qxc6 {[%emt 0:00:09]} Bxc6 {[%emt 0:00:01]} 32. Bd4 {[%emt 0:00:09]} Ke8 {[%emt 0:00:05]} 33. Kh2 {[%emt 0:00:06]} Kd7 {[%emt 0:00:10]} 34. Kg3 {[%emt 0:00:02]} Bd5 {[%emt 0:00:01]} 35. Bc2 {[%emt 0:00:03]} Nc6 {[%emt 0:00:01]} 36. Bc3 {[%emt 0:00:01]} Ke7 {[%emt 0:00:11]} 37. h5 {[%emt 0:00:05]} a5 {[%emt 0:00:18]} 38. b4 {[%emt 0:00:01]} axb4 {[%emt 0:00:02]} 39. axb4 {[%emt 0:00:01]} Bc4 {[%emt 0:00:02]} 40. Be4 {[%emt 0:00:03]} Nd8 {[%emt 0:00:02]} 41. Bd4 {[%emt 0:00:02]} Kf8 {[%emt 0:00:13]} 42. Bc5+ {[%emt 0:00:01]} Ke8 {[%emt 0:00:07]} 43. f4 {[%emt 0:00:01]} Kd7 {[%emt 0:00:05]} 44. Bf8 {[%emt 0:00:03]} g5 {[%emt 0:00:08]} 45. Bxh6 {[%emt 0:00:08]} gxf4+ {[%emt 0:00:01]} 46. Bxf4 {[%emt 0:00:03]} Ke8 {[%emt 0:00:01]} 47. Bg5 {[%emt 0:00:03]} Bd5 {[%emt 0:00:01]} 48. Bd3 {[%emt 0:00:03]} Nc6 {[%emt 0:00:02]} 49. Bxb5 {[%emt 0:00:03]} Kf8 {[%emt 0:00:01]} 50. Bxc6 {[%emt 0:00:08]} Bxc6 {[%emt 0:00:01]} 51. Bf6 {[%emt 0:00:05]} Kg8 {[%emt 0:00:02]} 52. Kf4 {[%emt 0:00:03]} Bb5 {[%emt 0:00:02]} 53. Ke3 {[%emt 0:00:04]} Bc6 {[%emt 0:00:04]} 54. g5 {[%emt 0:00:01]} Kh7 {[%emt 0:00:01]} 55. Kd4 {[%emt 0:00:01]} Bb5 {[%emt 0:00:05]} 56. Kc5 {[%emt 0:00:02]} Be2 {[%emt 0:00:02]} 57. h6 {[%emt 0:00:01]} Bf1 {[%emt 0:00:02]} 58. b5 {[%emt 0:00:01]} Be2 {[%emt 0:00:01]} 59. b6 {[%emt 0:00:02]} Bf3 {[%emt 0:00:01]} 60. Kd6 {[%emt 0:00:00]} Kg8 {[%emt 0:00:02]} 61. Kc7 {[%emt 0:00:01]} Bg2 {[%emt 0:00:01]} 62. b7 {[%emt 0:00:01]} Bxb7 {[%emt 0:00:02]} 63. Kxb7 {[%emt 0:00:02]} Kh7 {[%emt 0:00:01]} 64. Kc7 {[%emt 0:00:01]} Kg6 {[%emt 0:00:01]} 65. Kd7 {[%emt 0:00:01]} Kh7 {[%emt 0:00:01]} 66. Ke7 {[%emt 0:00:01]} Kg6 {[%emt 0:00:07]} 67. h7 {[%emt 0:00:00]} Kxh7 {[%emt 0:00:02]} 68. Kf8 {[%emt 0:00:05]} Kg6 {[%emt 0:00:03]} 69. Kg8 {[%emt 0:00:01]} 1-0